fUSD/lending_fUSD_20240331
["ID","MTS","AMOUNT","RATE_DAILY","PERIOD"]
[321162245,1711923087894,-500.0,0.00056438,120]
[321162246,1711923087904,-7116.49,0.00056438,120]
[321162247,1711923087913,-500.0,0.00056438,120]
[321162248,1711923087922,-5153.42,0.00056438,120]
[321162249,1711923087932,-562.59,0.00056438,120]
[321162250,1711923087943,-38.07929166,0.00056438,120]
[321162251,1711923088037,-68.17242751,0.00055068,120]
[321162252,1711923088576,-199.453056,0.00054794,120]
[321162253,1711923088586,-376.26466302,0.00054794,120]
[321162254,1711923088613,-123.73533698,0.00054794,120]
[321162255,1711923088623,-500.0,0.00054794,120]
[321162256,1711923088632,-500.0,0.00054794,120]
[321162257,1711923088641,-500.0,0.00054794,120]
[321162258,1711923088650,-500.0,0.00054794,120]
[321162259,1711923088659,-431.82757249,0.00055068,120]
[321162260,1711923088668,-500.0,0.00055068,120]
[321162261,1711923088677,-500.0,0.00055068,120]
[321162262,1711923088686,-500.0,0.00055342,120]
[321162263,1711923088695,-461.92070834,0.00056438,120]
[321162264,1711923088705,-500.0,0.00056438,120]
[321162265,1711923088715,-4895.04,0.00056438,120]
[321162266,1711923088724,-500.0,0.00056438,120]
[321162267,1711923088733,-1551.4,0.00056438,120]
[321162268,1711923088744,-661.38,0.00056438,120]
[321162269,1711923088753,-500.0,0.00056438,120]
[321162270,1711923088763,-2104.3,0.00056438,120]
[321162271,1711923088772,-905.15,0.00056438,120]
[321162272,1711923088781,-500.0,0.00056438,120]
[321162273,1711923088790,-500.0,0.00056438,120]
[321162274,1711923088799,-1274.03,0.00056438,120]
[321162275,1711923088808,-682.07,0.00056438,120]
[321162276,1711923088817,-3275.01,0.00056438,120]
[321162277,1711923088827,-10548.01,0.00056438,120]
[321162278,1711923088836,-500.0,0.00056438,120]
[321162279,1711923088846,-500.0,0.00056438,120]
[321162280,1711923088856,-500.0,0.00056438,120]
[321162281,1711923088866,-500.0,0.00056438,120]
[321162282,1711923088875,-765.64,0.00056438,120]
[321162283,1711923088884,-500.0,0.00056438,120]
[321162284,1711923088897,-3678.47,0.00056438,120]
[321162285,1711923088906,-664.19,0.00056438,120]
[321162286,1711923088915,-500.0,0.00056438,120]
[321162287,1711923088925,-500.0,0.00056438,120]
[321162288,1711923088934,-500.0,0.00056438,120]
[321162289,1711923088949,-500.0,0.00056438,120]
[321162290,1711923088959,-500.0,0.00056438,120]
[321162291,1711923088969,-500.0,0.00056438,120]
[321162292,1711923088978,-500.0,0.00056438,120]
[321162293,1711923088991,-500.0,0.00056438,120]
[321162294,1711923089000,-1709.54,0.00056438,120]
[321162295,1711923089010,-500.0,0.00056438,120]
[321162296,1711923089020,-2513.28,0.00056438,120]
[321162297,1711923089035,-500.0,0.00056438,120]
[321162298,1711923089044,-1507.12,0.00056438,120]
[321162299,1711923089054,-500.0,0.00056438,120]
[321162300,1711923089065,-500.0,0.00056438,120]
[321162301,1711923089075,-6377.51,0.00056438,120]
[321162302,1711923089084,-500.0,0.00056438,120]
[321162303,1711923089094,-1019.69,0.00056438,120]
[321162304,1711923089106,-500.0,0.00056438,120]
[321162305,1711923089116,-1693.34,0.00056438,120]
[321162306,1711923089126,-500.0,0.00056438,120]
[321162307,1711923089135,-7403.85,0.00056438,120]
[321162308,1711923089145,-528.46,0.00056438,120]
[321162309,1711923089154,-794.81,0.00056438,120]
[321162310,1711923089164,-500.0,0.00056438,120]
[321162311,1711923089173,-500.0,0.00056438,120]
[321162312,1711923089183,-500.0,0.00056438,120]
[321162313,1711923089193,-685.72,0.00056438,120]
[321162314,1711923089203,-735.7,0.00056438,120]
[321162315,1711923089213,-500.0,0.00056438,120]
[321162316,1711923089223,-500.0,0.00056438,120]
[321162317,1711923089232,-3704.86,0.00056438,120]
[321162318,1711923089243,-500.0,0.00056438,120]
[321162319,1711923089253,-2055.32,0.00056438,120]
[321162320,1711923089263,-500.0,0.00056438,120]
[321162321,1711923089273,-500.0,0.00056438,120]
[321162322,1711923089282,-6788.15,0.00056438,120]
[321162323,1711923089291,-589.91419204,0.00056438,120]
[321162324,1711923089301,-1631.72,0.00056438,120]
[321162325,1711923089310,-500.0,0.00056438,120]
[321162326,1711923089319,-799.91,0.00056438,120]
[321162327,1711923089329,-189.41,0.00056438,120]
[321162328,1711923089338,-3950.58,0.00056438,120]
[321162329,1711923089348,-527.54,0.00056438,120]
[321162330,1711923089357,-500.0,0.00056438,120]
[321162331,1711923089366,-500.0,0.00056438,120]
[321162332,1711923089375,-500.0,0.00056438,120]
[321162333,1711923089384,-659.94,0.00056438,120]
[321162334,1711923089393,-2106.81,0.00056438,120]
[321162335,1711923089403,-500.0,0.00056438,120]
[321162336,1711923089413,-737.48,0.00056438,120]
[321162337,1711923089422,-500.0,0.00056438,120]
[321162338,1711923089432,-2596.0,0.00056478,86]
[321162339,1711923089442,-500.0,0.00056681,120]
[321162340,1711923089451,-500.0,0.0005669,7]
[321162341,1711923089461,-500.0,0.0005669,7]
[321162342,1711923089470,-500.0,0.0005669,7]
[321162343,1711923089479,-500.0,0.0005669,7]
[321162344,1711923089488,-500.0,0.0005669,7]
[321162345,1711923089497,-500.0,0.0005669,7]
[321162346,1711923089507,-500.0,0.0005669,7]
[321162347,1711923089516,-500.0,0.0005669,7]
[321162348,1711923089525,-500.0,0.0005669,7]
[321162349,1711923089534,-500.0,0.0005669,7]
[321162350,1711923089543,-500.0,0.0005669,7]
[321162351,1711923089552,-500.0,0.0005669,7]
[321162352,1711923089561,-500.0,0.0005669,7]
[321162353,1711923089570,-500.0,0.0005669,7]
[321162354,1711923089580,-500.0,0.0005669,7]
[321162355,1711923089589,-500.0,0.0005669,7]
[321162356,1711923089598,-500.0,0.0005669,7]
[321162357,1711923089607,-500.0,0.0005669,7]
[321162358,1711923089617,-500.0,0.0005669,7]
[321162359,1711923089626,-500.0,0.0005669,7]
[321162360,1711923089635,-500.0,0.0005669,7]
[321162361,1711923089645,-500.0,0.0005669,7]
[321162362,1711923089654,-500.0,0.0005669,7]
[321162363,1711923089663,-500.0,0.0005669,7]
[321162364,1711923089672,-500.0,0.0005669,7]
[321162365,1711923089681,-188.38736331,0.0005669,7]
[321162366,1711923089754,-500.0,0.00054794,120]
[321162367,1711923089763,-311.61263669,0.0005669,7]
[321162368,1711923089772,-182.09336331,0.0005669,7]
[321162369,1711923091422,1000.0,0.0004236,30]
[321162370,1711923091623,246.78038964,0.0003,4]
[321162371,1711923091776,1029.63976993,0.0004226,4]
[321162372,1711923092678,1000.0,0.0004236,120]
[321162373,1711923191743,9657.9153128,0.0004236,120]
[321162374,1711923348119,23037.0846862,0.00041913,120]
[321162376,1711923908513,2500.0,0.00028,10]
[321162399,1711924231979,-350.0,0.00033,3]
[321162401,1711924231990,-47.08384421,0.00035,3]
[321162406,1711924232034,-352.91615579,0.00035,3]
[321162407,1711924232045,-500.0,0.00036438,30]
[321162408,1711924232055,-154.86,0.00037808,2]
[321162409,1711924232065,-153.78,0.00037808,2]
[321162410,1711924232075,-1717.13364421,0.0004,2]
[321162411,1711924232086,-282.86635579,0.0004,2]
[321162412,1711924232096,-175.51,0.00041096,2]
[321162413,1711924232107,-155.11884789,0.000427,2]
[321162414,1711924232118,-156.39,0.000428,4]
[321162415,1711924232128,-156.39,0.000428,4]
[321162416,1711924232139,-156.39,0.000428,4]
[321162417,1711924232149,-154.86,0.00046073,2]
[321162418,1711924232159,-155.11884789,0.00046789,2]
[321162419,1711924232170,-155.74528117,0.0004792,30]
[321162420,1711924232181,-499.99,0.0004792,2]
[321162421,1711924232191,-156.39,0.000484,6]
[321162422,1711924232201,-156.39,0.000484,6]
[321162423,1711924232212,-156.39,0.000484,6]
[321162424,1711924232221,-1373.44162526,0.0005,2]
[321162425,1711924232235,-533.76,0.0005,2]
[321162426,1711924232250,-716.61,0.0005,2]
[321162427,1711924232263,-1373.27,0.0005,2]
[321162428,1711924232276,-369.41,0.0005,2]
[321162429,1711924232302,-4604.20691617,0.0005,2]
[321162430,1711924232312,-500.0,0.0005,120]
[321162431,1711924232324,-153.78,0.00050205,2]
[321162432,1711924232335,-340.97,0.00050608,2]
[321162433,1711924232346,-155.11884789,0.00050879,2]
[321162434,1711924232357,-150.49,0.00052339,120]
[321162436,1711924232368,-3927.15,0.00052468,2]
[321162438,1711924232377,-553.7,0.00052581,120]
[321162440,1711924232387,-1306.78,0.00052608,2]
[321162442,1711924232398,-2623.64,0.00052639,120]
[321162444,1711924232410,-435.33,0.00052688,2]
[321162446,1711924232420,-538.68,0.00052688,2]
[321162447,1711924232432,-1000.0,0.00052688,30]
[321162448,1711924232445,-200.0,0.0005269,30]
[321162449,1711924232456,-23890.0,0.00052707,2]
[321162450,1711924232467,-500.0,0.00052707,2]
[321162451,1711924232477,-640.0,0.0005276,120]
[321162452,1711924232487,-13027.57,0.00052835,2]
[321162453,1711924232497,-201.88,0.00052839,2]
[321162454,1711924232507,-340.97,0.00052872,2]
[321162455,1711924232517,-279.08063351,0.00053,2]
[321162456,1711924232527,-250.0,0.00053027,120]
[321162457,1711924232537,-219.06,0.00053072,120]
[321162458,1711924232547,-153.9,0.00053113,2]
[321162459,1711924232557,-3167.87635776,0.00053235,2]
[321162460,1711924232568,-424.46212175,0.00053245,4]
[321162461,1711924232579,-150.99,0.00053246,2]
[321162462,1711924232590,-497.94,0.00053247,120]
[321162463,1711924232602,-168.68,0.00053274,2]
[321162464,1711924232612,-360.0,0.00053465,120]
[321162465,1711924232624,-1000.0,0.00053502,2]
[321162466,1711924232635,-2043.0,0.00053542,117]
[321162467,1711924232646,-153.9,0.00053575,2]
[321162468,1711924232656,-153.9,0.00054036,2]
[321162469,1711924232666,-156.39,0.000541,7]
[321162470,1711924232677,-156.39,0.000541,7]
[321162471,1711924232689,-156.39,0.000541,7]
[321162472,1711924232700,-154.86,0.00054338,2]
[321162473,1711924232710,-153.9,0.00054497,2]
[321162474,1711924232721,-432.6953,0.00054619,2]
[321162475,1711924232731,-2466.3721,0.00054678,2]
[321162476,1711924232742,-1000.0,0.00054694,2]
[321162477,1711924232753,-2500.0,0.00054694,2]
[321162478,1711924232764,-247.32836402,0.00054694,14]
[321162479,1711924232775,-1500.2409398,0.00054694,2]
[321162480,1711924232786,-150.19679371,0.00054694,120]
[321162481,1711924232797,-5800.0,0.00054718,7]
[321162482,1711924232807,-5800.0,0.00054727,7]
[321162483,1711924232818,-5800.0,0.00054735,7]
[321162484,1711924232829,-5800.0,0.00054744,7]
[321162485,1711924232840,-5800.0,0.00054753,7]
[321162486,1711924232852,-5800.0,0.00054761,7]
[321162487,1711924233104,-5800.0,0.0005477,7]
[321162488,1711924233117,-5800.0,0.00054778,7]
[321162489,1711924233129,-547.63,0.00054784,30]
[321162490,1711924233148,-5800.0,0.00054786,7]
[321162491,1711924233161,-605.61,0.00054789,120]
[321162492,1711924233172,-623.61452809,0.00054793,4]
[321162493,1711924233185,-500.0,0.00054794,120]
[321162494,1711924233195,-500.0,0.00054794,120]
[321162495,1711924233206,-500.0,0.00054794,30]
[321162496,1711924233217,-500.0,0.00054794,120]
[321162497,1711924233227,-500.0,0.00054794,120]
[321162498,1711924233237,-501.53561812,0.00054794,120]
[321162499,1711924233247,-500.0,0.00054794,120]
[321162500,1711924233262,-500.0,0.00054794,120]
[321162501,1711924233272,-500.0,0.00054794,120]
[321162502,1711924233284,-500.0,0.00054794,120]
[321162503,1711924233296,-500.0,0.00054794,120]
[321162504,1711924233307,-500.0,0.00054794,120]
[321162505,1711924233316,-500.0,0.00054794,120]
[321162506,1711924233326,-197.72490907,0.00054794,120]
[321162507,1711924233338,-500.0,0.00054794,120]
[321162508,1711924233350,-500.0,0.00054794,120]
[321162509,1711924233361,-500.0,0.00054794,120]
[321162510,1711924233373,-500.0,0.00054794,120]
[321162511,1711924233384,-207.15476986,0.00054794,21]
[321162512,1711924233394,-500.0,0.00054794,120]
[321162513,1711924233404,-500.0,0.00054794,120]
[321162514,1711924233415,-500.0,0.00054794,120]
[321162515,1711924233427,-500.0,0.00054794,120]
[321162516,1711924233438,-500.0,0.00054794,120]
[321162517,1711924233449,-500.0,0.00054794,120]
[321162518,1711924233459,-500.0,0.00054794,120]
[321162519,1711924233469,-500.0,0.00054794,120]
[321162520,1711924233480,-500.0,0.00054794,120]
[321162521,1711924233490,-500.0,0.00054794,120]
[321162522,1711924233501,-500.0,0.00054794,120]
[321162523,1711924233511,-500.0,0.00054794,120]
[321162524,1711924233522,-500.0,0.00054794,120]
[321162525,1711924233534,-504.86904663,0.00054794,120]
[321162526,1711924233545,-500.0,0.00054794,120]
[321162527,1711924233554,-500.0,0.00054794,120]
[321162528,1711924233564,-500.0,0.00054794,120]
[321162529,1711924233575,-505.62381362,0.00054794,120]
[321162530,1711924233585,-507.61484786,0.00054794,120]
[321162531,1711924233594,-500.0,0.00054794,120]
[321162532,1711924233604,-503.08553043,0.00054794,120]
[321162533,1711924233614,-500.0,0.00054794,120]
[321162534,1711924233624,-517.21637612,0.00054794,120]
[321162535,1711924233633,-500.0,0.00054794,120]
[321162536,1711924233643,-500.0,0.00054794,120]
[321162537,1711924233653,-189.08457722,0.00054794,120]
[321162538,1711924233664,-524.5536581,0.00054794,120]
[321162539,1711924233674,-507.45742956,0.00054794,120]
[321162540,1711924233684,-500.0,0.00054794,120]
[321162541,1711924233694,-500.0,0.00054794,120]
[321162542,1711924233703,-500.0,0.00054794,120]
[321162543,1711924233713,-500.0,0.00054794,120]
[321162544,1711924233722,-200.0,0.00054794,10]
[321162545,1711924233732,-500.0,0.00054794,120]
[321162546,1711924233741,-500.0,0.00054794,120]
[321162547,1711924233751,-528.23848203,0.00054794,120]
[321162548,1711924233761,-590.63241942,0.00054794,120]
[321162549,1711924233771,-500.0,0.00054794,120]
[321162550,1711924233781,-500.0,0.00054794,120]
[321162551,1711924233795,-500.0,0.00054794,120]
[321162552,1711924233804,-500.0,0.00054794,120]
[321162553,1711924233814,-500.0,0.00054794,120]
[321162554,1711924233823,-180.02821074,0.00054794,120]
[321162555,1711924233832,-500.0,0.00054794,120]
[321162556,1711924233842,-505.43373073,0.00054794,120]
[321162557,1711924233851,-503.88153974,0.00054794,120]
[321162558,1711924233859,-500.0,0.00054794,120]
[321162559,1711924233869,-500.0,0.00054794,120]
[321162560,1711924233878,-500.0,0.00054794,120]
[321162561,1711924233887,-500.0,0.00054794,120]
[321162562,1711924233896,-513.38229858,0.00054794,120]
[321162563,1711924233905,-504.35453231,0.00054794,120]
[321162564,1711924233914,-507.08953896,0.00054794,120]
[321162565,1711924233923,-501.60689868,0.00054794,120]
[321162566,1711924233932,-500.0,0.00054794,120]
[321162567,1711924233941,-511.48793029,0.00054794,120]
[321162568,1711924233951,-507.20120816,0.00054794,120]
[321162569,1711924233960,-500.0,0.00054794,120]
[321162570,1711924233969,-545.14061867,0.00054794,120]
[321162571,1711924233978,-500.0,0.00054794,120]
[321162572,1711924233987,-500.0,0.00054794,120]
[321162573,1711924233997,-499.58012372,0.00054794,120]
[321162574,1711924234006,-502.17486161,0.00054794,120]
[321162575,1711924234015,-500.0,0.00054794,120]
[321162576,1711924234024,-500.0,0.00054794,120]
[321162577,1711924234036,-500.0,0.00054794,120]
[321162578,1711924234045,-500.0,0.00054794,120]
[321162579,1711924234055,-500.0,0.00054794,120]
[321162580,1711924234065,-500.0,0.00054794,120]
[321162581,1711924234075,-500.0,0.00054794,120]
[321162582,1711924234086,-500.0,0.00054794,120]
[321162583,1711924234095,-500.0,0.00054794,120]
[321162584,1711924234106,-500.0,0.00054794,120]
[321162585,1711924234116,-500.0,0.00054794,120]
[321162586,1711924234127,-500.0,0.00054794,120]
[321162587,1711924234136,-500.0,0.00054794,120]
[321162588,1711924234145,-500.0,0.00054794,120]
[321162589,1711924234154,-500.0,0.00054794,120]
[321162590,1711924234163,-500.0,0.00054794,120]
[321162591,1711924234172,-500.0,0.00054794,120]
[321162592,1711924234182,-500.0,0.00054794,120]
[321162593,1711924234191,-500.0,0.00054794,120]
[321162594,1711924234200,-500.0,0.00054794,120]
[321162595,1711924234210,-500.0,0.00054794,120]
[321162596,1711924234220,-500.0,0.00054794,120]
[321162597,1711924234229,-500.0,0.00054794,120]
[321162598,1711924234238,-500.0,0.00054794,120]
[321162599,1711924234253,-500.0,0.00054794,120]
[321162600,1711924234263,-500.0,0.00054794,120]
[321162601,1711924234273,-500.0,0.00054794,120]
[321162602,1711924234282,-498.71471855,0.00054794,120]
[321162603,1711924234293,-500.0,0.00054794,120]
[321162604,1711924234302,-500.0,0.00054794,120]
[321162605,1711924234311,-500.0,0.00054794,120]
[321162606,1711924234321,-506.55735265,0.00054794,120]
[321162607,1711924234332,-500.0,0.00054794,120]
[321162608,1711924234341,-500.0,0.00054794,120]
[321162609,1711924234350,-509.70946668,0.00054794,120]
[321162610,1711924234360,-500.0,0.00054794,120]
[321162611,1711924234369,-500.0,0.00054794,120]
[321162612,1711924234378,-500.0,0.00054794,120]
[321162613,1711924234388,-504.64156856,0.00054794,7]
[321162614,1711924234398,-500.0,0.00054794,2]
[321162615,1711924234407,-514.61144436,0.00054794,120]
[321162616,1711924234418,-500.0,0.00054794,120]
[321162617,1711924234427,-500.0,0.00054794,120]
[321162618,1711924234437,-511.39166696,0.00054794,120]
[321162619,1711924234446,-500.0,0.00054794,120]
[321162620,1711924234456,-500.0,0.00054794,120]
[321162621,1711924234465,-500.0,0.00054794,120]
[321162622,1711924234474,-500.0,0.00054794,120]
[321162623,1711924234484,-620.30698113,0.00054794,120]
[321162624,1711924234493,-500.0,0.00054794,120]
[321162625,1711924234503,-500.0,0.00054794,120]
[321162626,1711924234513,-500.0,0.00054794,120]
[321162627,1711924234523,-500.0,0.00054794,120]
[321162628,1711924234533,-500.0,0.00054794,120]
[321162629,1711924234543,-500.0,0.00054794,120]
[321162630,1711924234552,-500.0,0.00054794,120]
[321162631,1711924234561,-500.0,0.00054794,120]
[321162632,1711924234570,-500.0,0.00054794,120]
[321162633,1711924234579,-500.0,0.00054794,120]
[321162634,1711924234588,-500.0,0.00054794,120]
[321162635,1711924234597,-500.0,0.00054794,120]
[321162636,1711924234606,-500.0,0.00054794,120]
[321162637,1711924234615,-500.0,0.00054794,120]
[321162638,1711924234625,-500.0,0.00054794,120]
[321162639,1711924234634,-509.19728576,0.00054794,120]
[321162640,1711924234643,-500.0,0.00054794,120]
[321162641,1711924234653,-522.92216635,0.00054794,120]
[321162642,1711924234662,-500.0,0.00054794,120]
[321162643,1711924234671,-500.0,0.00054794,120]
[321162644,1711924234681,-500.0,0.00054794,120]
[321162645,1711924234690,-500.0,0.00054794,120]
[321162646,1711924234700,-500.0,0.00054794,120]
[321162647,1711924234709,-500.0,0.00054794,120]
[321162648,1711924234718,-500.0,0.00054794,120]
[321162649,1711924234728,-500.0,0.00054794,120]
[321162650,1711924234737,-500.0,0.00054794,120]
[321162651,1711924234746,-500.0,0.00054794,120]
[321162652,1711924234756,-500.0,0.00054794,120]
[321162653,1711924234765,-503.4302442,0.00054794,120]
[321162654,1711924234774,-500.0,0.00054794,120]
[321162655,1711924234784,-500.0,0.00054794,120]
[321162656,1711924234794,-500.0,0.00054794,120]
[321162657,1711924234803,-500.0,0.00054794,120]
[321162658,1711924234813,-500.0,0.00054794,120]
[321162659,1711924234822,-500.0,0.00054794,120]
[321162660,1711924234831,-500.0,0.00054794,120]
[321162661,1711924234841,-500.0,0.00054794,120]
[321162662,1711924234851,-500.0,0.00054794,120]
[321162663,1711924234861,-500.0,0.00054794,120]
[321162664,1711924234872,-512.21677507,0.00054794,120]
[321162665,1711924234882,-500.0,0.00054794,120]
[321162666,1711924234891,-500.0,0.00054794,120]
[321162667,1711924234900,-500.0,0.00054794,120]
[321162668,1711924234910,-500.0,0.00054794,120]
[321162669,1711924234919,-500.0,0.00054794,120]
[321162670,1711924234929,-500.0,0.00054794,120]
[321162671,1711924234939,-500.0,0.00054794,120]
[321162672,1711924234949,-500.0,0.00054794,120]
[321162673,1711924234958,-500.0,0.00054794,120]
[321162674,1711924234968,-500.0,0.00054794,120]
[321162675,1711924234978,-500.0,0.00054794,120]
[321162676,1711924234988,-500.0,0.00054794,120]
[321162677,1711924234998,-500.0,0.00054794,120]
[321162678,1711924235007,-500.0,0.00054794,120]
[321162679,1711924235017,-500.0,0.00054794,120]
[321162680,1711924235026,-500.0,0.00054794,120]
[321162681,1711924235036,-500.0,0.00054794,120]
[321162682,1711924235045,-500.0,0.00054794,120]
[321162683,1711924235054,-500.0,0.00054794,120]
[321162684,1711924235064,-500.0,0.00054794,120]
[321162685,1711924235074,-500.0,0.00054794,120]
[321162686,1711924235083,-500.0,0.00054794,120]
[321162687,1711924235093,-500.0,0.00054794,120]
[321162688,1711924235102,-500.0,0.00054794,120]
[321162689,1711924235112,-515.69474808,0.00054794,120]
[321162690,1711924235123,-500.0,0.00054794,120]
[321162691,1711924235133,-500.0,0.00054794,120]
[321162692,1711924235143,-500.0,0.00054794,120]
[321162693,1711924235153,-500.0,0.00054794,120]
[321162694,1711924235163,-503.56144881,0.00054794,120]
[321162695,1711924235174,-500.0,0.00054794,120]
[321162696,1711924235184,-500.0,0.00054794,120]
[321162697,1711924235196,-500.0,0.00054794,120]
[321162698,1711924235207,-500.0,0.00054794,120]
[321162699,1711924235217,-500.0,0.00054794,120]
[321162700,1711924235227,-500.0,0.00054794,120]
[321162701,1711924235237,-500.0,0.00054794,120]
[321162702,1711924235249,-508.81884629,0.00054794,120]
[321162703,1711924235259,-500.0,0.00054794,120]
[321162704,1711924235269,-500.0,0.00054794,120]
[321162705,1711924235278,-500.0,0.00054794,120]
[321162706,1711924235288,-500.0,0.00054794,120]
[321162707,1711924235298,-500.0,0.00054794,120]
[321162708,1711924235307,-500.0,0.00054794,120]
[321162709,1711924235317,-500.0,0.00054794,120]
[321162710,1711924235328,-500.0,0.00054794,120]
[321162711,1711924235339,-500.0,0.00054794,120]
[321162712,1711924235348,-500.0,0.00054794,120]
[321162713,1711924235358,-500.0,0.00054794,120]
[321162714,1711924235367,-500.0,0.00054794,120]
[321162715,1711924235377,-500.0,0.00054794,120]
[321162716,1711924235386,-500.0,0.00054794,120]
[321162717,1711924235400,-500.0,0.00054794,120]
[321162718,1711924235412,-500.0,0.00054794,120]
[321162719,1711924235422,-508.14,0.00054794,120]
[321162720,1711924235431,-500.0,0.00054794,120]
[321162721,1711924235441,-500.0,0.00054794,120]
[321162722,1711924235451,-500.0,0.00054794,120]
[321162723,1711924235460,-500.0,0.00054794,120]
[321162724,1711924235470,-786.61,0.00054794,120]
[321162725,1711924235479,-500.0,0.00054794,120]
[321162726,1711924235489,-500.0,0.00054794,120]
[321162727,1711924235499,-764.28,0.00054794,120]
[321162728,1711924235509,-500.0,0.00054794,120]
[321162729,1711924235518,-500.0,0.00054794,120]
[321162730,1711924235572,-500.0,0.00054794,120]
[321162731,1711924235582,-500.0,0.00054794,120]
[321162732,1711924235591,-700.21,0.00054794,120]
[321162733,1711924235601,-500.0,0.00054794,120]
[321162734,1711924235611,-500.0,0.00054794,120]
[321162735,1711924235620,-500.0,0.00054794,120]
[321162736,1711924235630,-771.94,0.00054794,120]
[321162737,1711924235639,-500.0,0.00054794,120]
[321162738,1711924235648,-500.0,0.00054794,120]
[321162739,1711924235658,-500.0,0.00054794,120]
[321162740,1711924235667,-500.0,0.00054794,120]
[321162741,1711924235676,-500.0,0.00054794,120]
[321162742,1711924235686,-500.0,0.00054794,120]
[321162743,1711924235695,-500.0,0.00054794,120]
[321162744,1711924235704,-500.0,0.00054794,120]
[321162745,1711924235714,-500.0,0.00054794,120]
[321162746,1711924235723,-500.0,0.00054794,30]
[321162747,1711924235732,-500.0,0.00054794,120]
[321162748,1711924235741,-500.0,0.00054794,120]
[321162749,1711924235750,-500.0,0.00054794,120]
[321162750,1711924235759,-500.0,0.00054794,120]
[321162751,1711924235769,-720.09,0.00054794,120]
[321162752,1711924235778,-500.0,0.00054794,120]
[321162753,1711924235787,-500.0,0.00054794,120]
[321162754,1711924235797,-500.0,0.00054794,120]
[321162755,1711924235806,-500.0,0.00054794,120]
[321162756,1711924235815,-500.0,0.00054794,120]
[321162757,1711924235825,-500.0,0.00054794,120]
[321162758,1711924235834,-500.0,0.00054794,120]
[321162759,1711924235843,-500.0,0.00054794,120]
[321162760,1711924235853,-500.0,0.00054794,120]
[321162761,1711924235862,-500.0,0.00054794,120]
[321162762,1711924235871,-500.0,0.00054794,120]
[321162763,1711924235880,-500.0,0.00054794,120]
[321162764,1711924235889,-500.0,0.00054794,120]
[321162765,1711924235898,-500.0,0.00054794,120]
[321162766,1711924235907,-150.0,0.00054794,120]
[321162767,1711924235916,-500.0,0.00054794,120]
[321162768,1711924235925,-504.54836533,0.00054794,120]
[321162769,1711924235935,-500.0,0.00054794,120]
[321162770,1711924235944,-500.0,0.00054794,120]
[321162771,1711924235953,-500.0,0.00054794,120]
[321162772,1711924235962,-500.0,0.00054794,120]
[321162773,1711924235971,-500.0,0.00054794,120]
[321162774,1711924235981,-500.0,0.00054794,120]
[321162775,1711924235990,-500.0,0.00054794,120]
[321162776,1711924235999,-500.0,0.00054794,120]
[321162777,1711924236008,-500.0,0.00054794,120]
[321162778,1711924236017,-500.0,0.00054794,120]